fUSD/lending_fUSD_20260217
["ID","MTS","AMOUNT","RATE_DAILY","PERIOD"]
[405793288,1771314641658,-500.0,0.00010779,2]
[405793289,1771314641667,-468.80031656,0.00010781,2]
[405793290,1771314641676,-500.0,0.00010816,2]
[405793291,1771314641685,-872.0,0.00010816,2]
[405793292,1771314641695,-4242.0,0.00010816,2]
[405793293,1771314641704,-596.0,0.00010817,2]
[405793294,1771314641713,-500.0,0.00010871,2]
[405793295,1771314641722,-872.0,0.00010871,2]
[405793296,1771314641731,-4242.0,0.00010871,2]
[405793297,1771314641740,-596.0,0.00010872,2]
[405793298,1771314641750,-500.0,0.00010925,2]
[405793299,1771314641760,-872.0,0.00010925,2]
[405793300,1771314641771,-4242.0,0.00010925,2]
[405793301,1771314641780,-596.0,0.00010926,2]
[405793302,1771314641791,-500.0,0.00010959,2]
[405793303,1771314641800,-226.88409827,0.00010959,2]
[405793304,1771314641809,-1551.84,0.00010959,2]
[405793305,1771314641819,-150.0,0.00010959,2]
[405793306,1771314641829,-9419.8,0.00010959,2]
[405793307,1771314641838,-166.66,0.00010959,2]
[405793308,1771314641847,-150.0,0.00010959,2]
[405793309,1771314641856,-512.26030593,0.0001098,2]
[405793310,1771314641866,-887.15179644,0.0001098,2]
[405793311,1771314641875,-4242.729734,0.0001098,2]
[405793312,1771314641884,-600.2655769,0.00010981,2]
[405793313,1771314641893,-166.66,0.00011068,2]
[405793314,1771314641903,-151.0,0.00011096,2]
[405793315,1771314641912,-500.0,0.00011096,2]
[405793316,1771314641921,-200.0,0.00011096,2]
[405793317,1771314641930,-200.0,0.00011096,2]
[405793318,1771314641940,-27570.95193881,0.00011099,2]
[405793319,1771314641949,-27570.95193881,0.00011099,2]
[405793320,1771314641959,-27570.95193881,0.00011099,2]
[405793321,1771314641968,-27570.95193881,0.00011099,2]
[405793322,1771314641977,-8410.50865546,0.00011099,2]
[405793323,1771314641988,-8410.50865541,0.00011099,2]
[405793324,1771314641997,-8410.50865541,0.00011099,2]
[405793325,1771314642006,-8410.50865541,0.00011099,2]
[405793326,1771314642015,-8410.50865541,0.00011099,2]
[405793327,1771314642024,-8410.50865541,0.00011099,2]
[405793328,1771314642033,-8410.50865541,0.00011099,2]
[405793329,1771314642042,-8410.50865541,0.00011099,2]
[405793330,1771314642051,-8410.50865541,0.00011099,2]
[405793331,1771314642061,-8410.50865541,0.00011099,2]
[405793332,1771314642073,-166.66,0.00011178,2]
[405793333,1771314642082,-1474.73875054,0.000112,2]
[405793334,1771314642092,-500.0,0.00011242,2]
[405793335,1771314642101,-150.0,0.00011242,2]
[405793336,1771314642111,-500.0,0.00011242,2]
[405793337,1771314642121,-500.0,0.00011242,2]
[405793338,1771314642130,-150.0,0.00011242,2]
[405793339,1771314642140,-150.0,0.00011242,2]
[405793340,1771314642149,-150.0,0.00011242,2]
[405793341,1771314642159,-150.0,0.00011242,2]
[405793342,1771314642168,-500.0,0.00011242,2]
[405793343,1771314642177,-150.0,0.00011242,2]
[405793344,1771314642187,-500.0,0.00011242,2]
[405793345,1771314642197,-166.66,0.00011288,2]
[405793346,1771314642206,-500.0,0.00011297,2]
[405793347,1771314642215,-150.0,0.00011297,2]
[405793348,1771314642224,-500.0,0.00011297,2]
[405793349,1771314642234,-244.28993987,0.00011297,2]
[405793350,1771314642243,-500.0,0.00011297,2]
[405793351,1771314642253,-150.0,0.00011297,2]
[405793352,1771314642262,-150.0,0.00011297,2]
[405793353,1771314642272,-150.0,0.00011297,2]
[405793354,1771314642281,-500.0,0.00011297,2]
[405793355,1771314642290,-205.12968692,0.00011297,2]
[405793356,1771314642299,-649.65624143,0.00011297,2]
[405793357,1771314642308,-500.97291215,0.00011327,2]
[405793358,1771314642317,-1000.0,0.00011327,2]
[405793359,1771314642326,-1000.0,0.00011327,2]
[405793360,1771314642335,-643.23767655,0.00011327,2]
[405793361,1771314642344,-1000.0,0.00011327,2]
[405793362,1771314642353,-1000.0,0.00011327,2]
[405793363,1771314642362,-502.71949542,0.00011327,2]
[405793364,1771314642372,-500.0,0.00011352,2]
[405793365,1771314642382,-242.84628954,0.00011352,2]
[405793366,1771314642391,-500.0,0.00011352,2]
[405793367,1771314642400,-152.12850518,0.00011352,2]
[405793368,1771314642409,-150.0,0.00011352,2]
[405793369,1771314642418,-200.36674187,0.00011352,2]
[405793370,1771314642427,-200.18645604,0.00011352,2]
[405793371,1771314642437,-500.0,0.00011352,2]
[405793372,1771314642446,-166.66,0.00011397,2]
[405793373,1771314642455,-215.39112272,0.00011402,2]
[405793374,1771314642464,-500.0,0.00011406,2]
[405793375,1771314642474,-500.0,0.00011406,2]
[405793376,1771314642484,-200.89245722,0.00011406,2]
[405793377,1771314642492,-500.0,0.00011406,2]
[405793378,1771314642502,-500.0,0.00011461,2]
[405793379,1771314642512,-500.0,0.00011461,2]
[405793380,1771314642521,-500.0,0.00011461,2]
[405793381,1771314642531,-166.66,0.00011507,2]
[405793382,1771314642540,-2145.41,0.00011516,2]
[405793383,1771314642550,-500.0,0.00011516,2]
[405793384,1771314642560,-500.0,0.00011516,2]
[405793385,1771314642571,-500.0,0.00011516,2]
[405793386,1771314642582,-2351.0,0.00011519,2]
[405793387,1771314642591,-898.32890406,0.00011562,2]
[405793388,1771314642600,-500.0,0.00011571,2]
[405793389,1771314642610,-630.25617345,0.00011571,2]
[405793390,1771314642620,-382.17209928,0.00011571,2]
[405793391,1771314642629,-500.0,0.0001161,2]
[405793392,1771314642640,-500.0,0.00011626,2]
[405793393,1771314642650,-500.0,0.00011644,2]
[405793394,1771314642659,-200.0,0.00011644,2]
[405793395,1771314642669,-200.0,0.00011644,2]
[405793396,1771314642678,-2145.41,0.00011667,2]
[405793397,1771314642689,-500.0,0.0001168,2]
[405793398,1771314642699,-500.0,0.00011735,2]
[405793399,1771314642709,-433.0,0.0001176,2]
[405793400,1771314642719,-587.0,0.0001176,2]
[405793401,1771314642729,-500.0,0.0001179,2]
[405793402,1771314642739,-2145.41,0.00011819,2]
[405793403,1771314642748,-163.51122534,0.00011845,2]
[405793404,1771314642758,-185.96,0.00011864,2]
[405793405,1771314642767,-1500.0,0.00011875,2]
[405793406,1771314642776,-1500.0,0.00011875,2]
[405793407,1771314642786,-1500.0,0.00011875,2]
[405793408,1771314642796,-1500.0,0.00011875,2]
[405793409,1771314642806,-500.0,0.00011884,2]
[405793410,1771314642815,-2145.41,0.0001197,2]
[405793411,1771314642824,-30336.8,0.00012055,2]
[405793412,1771314642834,-29999.99,0.00012087,2]
[405793413,1771314642843,-1401.0,0.00012087,2]
[405793414,1771314642853,-9999.99,0.00012087,2]
[405793415,1771314642862,-2145.41,0.00012122,2]
[405793416,1771314642875,-500.0,0.00012158,2]
[405793417,1771314642889,-500.0,0.00012192,2]
[405793418,1771314642899,-200.0,0.00012192,2]
[405793419,1771314642910,-200.0,0.00012192,2]
[405793420,1771314642919,-2145.41,0.00012273,2]
[405793421,1771314642927,-1799.80965345,0.00012423,2]
[405793422,1771314642936,-2000.0,0.00012423,2]
[405793423,1771314642946,-368.72151799,0.00012423,2]
[405793424,1771314642955,-2000.0,0.00012423,2]
[405793425,1771314642964,-2145.41,0.00012425,2]
[405793426,1771314642974,-500.0,0.00012432,2]
[405793427,1771314642985,-885.17558433,0.00012506,2]
[405793428,1771314642995,-250.0,0.00012516,2]
[405793429,1771314643005,-185.96,0.00012523,2]
[405793430,1771314643015,-2145.41,0.00012577,2]
[405793431,1771314643026,-3292.0,0.00012671,2]
[405793432,1771314643037,-500.0,0.00012706,2]
[405793434,1771314643048,-2145.41,0.00012728,2]
[405793436,1771314643057,-503.55960548,0.0001274,2]
[405793437,1771314643070,-201.41552809,0.0001274,2]
[405793438,1771314643079,-201.77822118,0.0001274,2]
[405793439,1771314643090,-2145.41,0.0001288,2]
[405793440,1771314643099,-118198.0,0.000129,2]
[405793441,1771314643111,-736.0,0.00012936,2]
[405793442,1771314643122,-823.0,0.00012936,2]
[405793443,1771314643133,-2500.0,0.00012971,2]
[405793444,1771314643146,-502.39964348,0.00012971,2]
[405793445,1771314643157,-500.0,0.0001298,2]
[405793446,1771314643166,-2145.41,0.00013031,2]
[405793447,1771314643176,-185.96,0.00013182,2]
[405793448,1771314643186,-2145.41,0.00013183,2]
[405793449,1771314643197,-500.0,0.00013254,2]
[405793450,1771314643207,-391.49,0.00013297,2]
[405793451,1771314643217,-5530.0,0.000133,3]
[405793452,1771314643227,-2145.41,0.00013334,2]
[405793453,1771314643236,-2145.41,0.00013486,2]
[405793454,1771314643246,-3000.0,0.00013519,2]
[405793455,1771314643255,-500.0,0.00013528,2]
[405793456,1771314643265,-2145.41,0.00013637,2]
[405793457,1771314643276,-500.0,0.00013698,2]
[405793458,1771314643286,-58.52628538,0.00013698,2]
[405793459,1771314643295,-500.0,0.00013698,2]
[405793460,1771314643304,-307.44205355,0.00013698,2]
[405793461,1771314643313,-500.0,0.00013698,2]
[405793462,1771314643322,-500.0,0.00013698,2]
[405793463,1771314643332,-500.0,0.00013698,2]
[405793464,1771314643341,-500.0,0.00013698,2]
[405793465,1771314643350,-500.0,0.00013698,2]
[405793466,1771314643359,-500.0,0.00013698,2]
[405793468,1771314643368,-500.0,0.00013698,2]
[405793469,1771314643378,-500.0,0.00013698,2]
[405793470,1771314643387,-500.0,0.00013698,2]
[405793471,1771314643397,-500.0,0.00013698,2]
[405793472,1771314643406,-500.0,0.00013698,2]
[405793473,1771314643415,-500.0,0.00013698,2]
[405793474,1771314643424,-500.0,0.00013698,2]
[405793475,1771314643433,-500.0,0.00013698,2]
[405793476,1771314643443,-500.0,0.00013698,2]
[405793477,1771314643452,-500.0,0.00013698,2]
[405793478,1771314643461,-500.0,0.00013698,2]
[405793479,1771314643470,-500.0,0.00013698,2]
[405793480,1771314643479,-500.0,0.00013698,2]
[405793481,1771314643489,-500.0,0.00013698,2]
[405793482,1771314643499,-500.0,0.00013698,2]
[405793483,1771314643508,-500.0,0.00013698,2]
[405793484,1771314643517,-500.0,0.00013698,2]
[405793485,1771314643527,-503.24510855,0.00013698,2]
[405793486,1771314643536,-500.0,0.00013698,2]
[405793487,1771314643546,-500.0,0.00013698,2]
[405793488,1771314643556,-500.0,0.00013698,2]
[405793489,1771314643565,-205.75338066,0.00013698,2]
[405793490,1771314643575,-500.0,0.00013698,2]
[405793491,1771314643585,-500.0,0.00013698,2]
[405793492,1771314643595,-500.0,0.00013698,2]
[405793493,1771314643604,-500.0,0.00013698,2]
[405793494,1771314643614,-500.0,0.00013698,2]
[405793495,1771314643624,-500.0,0.00013698,2]
[405793496,1771314643633,-500.0,0.00013698,2]
[405793497,1771314643643,-500.0,0.00013698,2]
[405793498,1771314643652,-500.0,0.00013698,2]
[405793499,1771314643662,-500.0,0.00013698,2]
[405793500,1771314643671,-391.46615766,0.00013698,2]
[405793501,1771314643680,-679.08,0.00013698,2]
[405793502,1771314643690,-679.08,0.00013698,2]
[405793503,1771314643699,-679.08,0.00013698,2]
[405793504,1771314643709,-679.08,0.00013698,2]
[405793505,1771314643719,-679.08,0.00013698,2]
[405793506,1771314643729,-679.08,0.00013698,2]
[405793507,1771314643738,-679.08,0.00013698,2]
[405793508,1771314643747,-679.08,0.00013698,2]
[405793509,1771314643757,-679.08,0.00013698,2]
[405793510,1771314643766,-679.08,0.00013698,2]
[405793511,1771314643776,-679.08,0.00013698,2]
[405793512,1771314643786,-679.08,0.00013698,2]
[405793513,1771314643796,-679.08,0.00013698,2]
[405793514,1771314643805,-679.08,0.00013698,2]
[405793515,1771314643815,-679.08,0.00013698,2]
[405793516,1771314643825,-500.0,0.00013698,2]
[405793517,1771314643835,-500.0,0.00013698,2]
[405793518,1771314643845,-400.27334963,0.00013698,2]
[405793519,1771314643855,-500.0,0.00013698,2]
[405793520,1771314643864,-500.0,0.00013698,2]
[405793521,1771314643874,-500.0,0.00013698,2]
[405793522,1771314643884,-500.0,0.00013698,2]
[405793523,1771314643893,-500.0,0.00013698,2]
[405793524,1771314643902,-500.0,0.00013698,2]
[405793525,1771314643912,-500.0,0.00013698,2]
[405793526,1771314643921,-500.0,0.00013698,2]
[405793527,1771314643931,-500.0,0.00013698,2]
[405793528,1771314643940,-500.0,0.00013698,2]
[405793529,1771314643949,-500.0,0.00013698,2]
[405793530,1771314643959,-500.0,0.00013698,2]
[405793531,1771314643969,-500.0,0.00013698,2]
[405793532,1771314643979,-500.0,0.00013698,2]
[405793533,1771314643989,-500.0,0.00013698,2]
[405793534,1771314643999,-500.0,0.00013698,2]
[405793535,1771314644008,-500.0,0.00013698,2]
[405793536,1771314644017,-500.0,0.00013698,2]
[405793537,1771314644027,-500.0,0.00013698,2]
[405793538,1771314644037,-500.0,0.00013698,2]
[405793539,1771314644046,-500.0,0.00013698,2]
[405793540,1771314644058,-500.0,0.00013698,2]
[405793541,1771314644071,-500.0,0.00013698,2]
[405793543,1771314644080,-500.0,0.00013698,2]
[405793544,1771314644090,-500.0,0.00013698,2]
[405793546,1771314644099,-500.0,0.00013698,2]
[405793548,1771314644108,-500.0,0.00013698,2]
[405793550,1771314644118,-500.0,0.00013698,2]
[405793551,1771314644129,-500.0,0.00013698,2]
[405793552,1771314644139,-500.0,0.00013698,2]
[405793553,1771314644150,-500.0,0.00013698,2]
[405793554,1771314644159,-500.0,0.00013698,2]
[405793555,1771314644169,-500.0,0.00013698,2]
[405793556,1771314644179,-500.0,0.00013698,2]
[405793557,1771314644188,-500.0,0.00013698,2]
[405793558,1771314644198,-500.0,0.00013698,2]
[405793559,1771314644208,-500.0,0.00013698,2]
[405793560,1771314644219,-500.0,0.00013698,2]
[405793561,1771314644228,-500.0,0.00013698,2]
[405793562,1771314644239,-500.0,0.00013698,2]
[405793563,1771314644250,-500.0,0.00013698,2]
[405793564,1771314644259,-500.0,0.00013698,2]
[405793565,1771314644268,-500.0,0.00013698,2]
[405793566,1771314644278,-500.0,0.00013698,2]
[405793567,1771314644288,-500.0,0.00013698,2]
[405793568,1771314644297,-500.0,0.00013698,2]
[405793569,1771314644307,-500.0,0.00013698,2]
[405793570,1771314644317,-500.0,0.00013698,2]
[405793571,1771314644333,-522.2154278,0.00013698,2]
[405793572,1771314644352,-1015.72,0.00013698,2]
[405793573,1771314644362,-1015.72,0.00013698,2]
[405793574,1771314644372,-1015.72,0.00013698,2]
[405793575,1771314644381,-1015.72,0.00013698,2]
[405793576,1771314644391,-1015.72,0.00013698,2]
[405793577,1771314644401,-1015.72,0.00013698,2]
[405793578,1771314644410,-1015.72,0.00013698,2]
[405793579,1771314644420,-1015.72,0.00013698,2]
[405793580,1771314644430,-1015.72,0.00013698,2]
[405793581,1771314644439,-1015.72,0.00013698,2]
[405793582,1771314644448,-1015.72,0.00013698,2]
[405793583,1771314644457,-1015.72,0.00013698,2]
[405793584,1771314644466,-1015.72,0.00013698,2]
[405793585,1771314644476,-1015.72,0.00013698,2]
[405793586,1771314644486,-1015.72,0.00013698,2]
[405793587,1771314644495,-456.05800986,0.00013698,2]
[405793588,1771314644505,-500.0,0.00013698,2]
[405793589,1771314644516,-500.0,0.00013698,2]
[405793590,1771314644526,-500.0,0.00013698,2]
[405793591,1771314644536,-500.0,0.00013698,2]
[405793592,1771314644545,-500.0,0.00013698,2]
[405793593,1771314644555,-500.0,0.00013698,2]
[405793594,1771314644564,-500.0,0.00013698,2]
[405793595,1771314644574,-500.0,0.00013698,2]
[405793596,1771314644583,-500.0,0.00013698,2]
[405793597,1771314644593,-500.0,0.00013698,2]
[405793598,1771314644603,-430.55674509,0.00013698,2]
[405793599,1771314644612,-500.0,0.00013698,2]
[405793600,1771314644621,-500.0,0.00013698,2]
[405793601,1771314644631,-500.0,0.00013698,2]
[405793602,1771314644640,-500.0,0.00013698,2]
[405793603,1771314644649,-500.0,0.00013698,2]
[405793604,1771314644658,-500.0,0.00013698,2]
[405793605,1771314644668,-500.0,0.00013698,2]
[405793606,1771314644677,-500.0,0.00013698,2]
[405793607,1771314644686,-500.0,0.00013698,2]
[405793608,1771314644696,-500.0,0.00013698,2]
[405793609,1771314644707,-500.0,0.00013698,2]
[405793610,1771314644716,-500.0,0.00013698,2]
[405793611,1771314644726,-500.0,0.00013698,2]
[405793612,1771314644736,-500.0,0.00013698,2]
[405793613,1771314644745,-500.0,0.00013698,2]
[405793614,1771314644755,-506.79858148,0.00013698,2]
[405793615,1771314644764,-535.55684817,0.00013698,2]
[405793616,1771314644774,-500.0,0.00013698,2]
[405793617,1771314644783,-500.0,0.00013698,2]
[405793618,1771314644793,-500.0,0.00013698,2]
[405793619,1771314644802,-639.90682726,0.00013698,2]
[405793620,1771314644812,-915.21,0.00013698,2]
[405793621,1771314644824,-915.21,0.00013698,2]
[405793622,1771314644836,-915.21,0.00013698,2]
[405793623,1771314644847,-915.21,0.00013698,2]
[405793624,1771314644858,-915.21,0.00013698,2]
[405793625,1771314644868,-915.21,0.00013698,2]
[405793626,1771314644877,-915.21,0.00013698,2]
[405793627,1771314644886,-915.21,0.00013698,2]
[405793628,1771314644895,-915.21,0.00013698,2]
[405793629,1771314644906,-915.21,0.00013698,2]
[405793630,1771314644917,-915.21,0.00013698,2]
[405793631,1771314644926,-915.21,0.00013698,2]
[405793632,1771314644937,-915.21,0.00013698,2]
[405793633,1771314644946,-915.21,0.00013698,2]
[405793634,1771314644956,-915.21,0.00013698,2]
[405793635,1771314644967,-915.21,0.00013698,2]
[405793636,1771314644977,-915.21,0.00013698,2]
[405793637,1771314644987,-915.21,0.00013698,2]
[405793638,1771314644996,-915.21,0.00013698,2]
[405793639,1771314645007,-915.21,0.00013698,2]
[405793640,1771314645017,-915.21,0.00013698,2]
[405793641,1771314645027,-915.21,0.00013698,2]
[405793642,1771314645038,-500.0,0.00013698,2]
[405793643,1771314645050,-915.21,0.00013698,2]
[405793644,1771314645060,-500.0,0.00013698,2]
[405793645,1771314645074,-915.2263384,0.00013698,2]
[405793646,1771314645084,-500.0,0.00013698,2]
[405793647,1771314645094,-500.0,0.00013698,2]
[405793648,1771314645105,-500.0,0.00013698,2]
[405793649,1771314645305,-500.0,0.00013698,2]
[405793650,1771314645345,-500.0,0.00013698,2]
[405793651,1771314645354,-500.0,0.00013698,2]
[405793652,1771314645364,-500.0,0.00013698,2]
[405793653,1771314645373,-500.0,0.00013698,2]
[405793654,1771314645383,-500.0,0.00013698,2]
[405793655,1771314645392,-500.0,0.00013698,2]
[405793656,1771314645401,-500.0,0.00013698,2]
[405793657,1771314645411,-500.0,0.00013698,2]
[405793658,1771314645420,-500.0,0.00013698,2]
[405793659,1771314645429,-500.0,0.00013698,2]
[405793660,1771314645439,-500.0,0.00013698,2]
[405793661,1771314645448,-286.9609652,0.00013698,2]
[405793662,1771314645457,-349.69131006,0.00013698,2]
[405793663,1771314645466,-500.0,0.00013698,2]
[405793664,1771314645475,-500.0,0.00013698,2]
[405793665,1771314645485,-500.0,0.00013698,2]
[405793666,1771314645494,-500.0,0.00013698,2]
[405793667,1771314645503,-511.5660924,0.00013698,2]
[405793668,1771314645514,-529.40507312,0.00013698,2]
[405793669,1771314645523,-500.0,0.00013698,2]
[405793670,1771314645532,-500.0,0.00013698,2]
[405793671,1771314645542,-500.0,0.00013698,2]
[405793672,1771314645552,-500.0,0.00013698,2]
[405793673,1771314645562,-500.0,0.00013698,2]
[405793674,1771314645571,-500.0,0.00013698,2]
[405793675,1771314645581,-500.0,0.00013698,2]
[405793676,1771314645590,-500.0,0.00013698,2]
[405793677,1771314645600,-500.0,0.00013698,2]
[405793678,1771314645610,-538.27974596,0.00013698,2]
[405793679,1771314645619,-151.02878078,0.00013699,2]
[405793680,1771314645630,-5530.0,0.000137,5]
[405793681,1771314645639,-2145.41,0.00013789,2]
[405793682,1771314645649,-325.66480715,0.00013802,2]
[405793683,1771314645659,-1576.69293966,0.00013805,2]
[405793684,1771314645668,-5519.99513015,0.00013805,2]
[405793685,1771314645677,-1563.90389462,0.00013805,2]
[405793686,1771314645687,-500.0,0.00013813,2]
[405793687,1771314645697,-679.08,0.00013813,2]
[405793688,1771314645706,-500.0,0.00013813,2]
[405793689,1771314645716,-500.0,0.00013813,2]
[405793690,1771314645726,-500.0,0.00013813,2]
[405793691,1771314645735,-1015.72,0.00013813,2]
[405793692,1771314645744,-500.0,0.00013813,2]
[405793693,1771314645754,-185.96,0.00013842,2]
[405793694,1771314645764,-161.76553767,0.00013913,2]
[405793695,1771314645774,-679.08,0.00013913,2]
[405793696,1771314645783,-679.08,0.00013913,2]
[405793697,1771314645792,-679.08,0.00013913,2]
[405793698,1771314645802,-679.08,0.00013913,2]
[405793699,1771314645811,-679.08,0.00013913,2]
[405793700,1771314645820,-679.08,0.00013913,2]
[405793701,1771314645829,-679.08,0.00013913,2]
[405793702,1771314645838,-679.22619195,0.00013913,2]
[405793703,1771314645847,-500.0,0.00013913,2]
[405793704,1771314645856,-500.0,0.00013913,2]
[405793705,1771314645865,-500.0,0.00013913,2]
[405793706,1771314645874,-500.0,0.00013913,2]
[405793707,1771314645884,-500.0,0.00013913,2]
[405793708,1771314645893,-500.0,0.00013913,2]
[405793709,1771314645902,-500.0,0.00013913,2]
[405793710,1771314645911,-388.47570654,0.00013913,2]
[405793711,1771314645921,-500.0,0.00013913,2]
[405793712,1771314645930,-500.0,0.00013913,2]
[405793713,1771314645939,-197.6651859,0.00013913,2]
[405793714,1771314645948,-500.0,0.00013913,2]
[405793715,1771314645958,-500.0,0.00013913,2]
[405793716,1771314645967,-500.0,0.00013913,2]
[405793717,1771314645976,-1015.72,0.00013913,2]
[405793718,1771314645986,-1015.72,0.00013913,2]
[405793719,1771314645995,-1015.72,0.00013913,2]
[405793720,1771314646005,-1015.72,0.00013913,2]
[405793721,1771314646015,-1015.72,0.00013913,2]
[405793722,1771314646024,-1015.72,0.00013913,2]
[405793723,1771314646034,-1015.72,0.00013913,2]
[405793724,1771314646043,-1015.84,0.00013913,2]
[405793725,1771314646052,-500.0,0.00013913,2]
[405793726,1771314646063,-500.0,0.00013913,2]
[405793727,1771314646077,-505.24249427,0.00013913,2]
[405793728,1771314646086,-4609.0,0.00013938,2]
[405793729,1771314646095,-2145.41,0.0001394,2]
[405793730,1771314646106,-846.3153877,0.00014067,2]
[405793731,1771314646118,-2145.41,0.00014092,2]
[405793732,1771314646127,-292.53390119,0.00014198,2]
[405793733,1771314646140,-1252.0,0.00014229,2]
[405793734,1771314646151,-734.0,0.0001423,2]
[405793735,1771314646163,-2658.558404,0.00014243,7]
[405793736,1771314646173,-6155.062938,0.00014243,7]
[405793737,1771314646185,-2145.41,0.00014243,2]
[405793738,1771314646197,-152.75,0.00014278,2]
[405793739,1771314646208,-2145.41,0.00014395,2]
[405793740,1771314646218,-185.96,0.00014501,2]
[405793741,1771314646228,-151.0,0.00014634,2]
[405793742,1771314646238,-151.0,0.00014634,2]
[405793743,1771314646247,-151.0,0.00014634,2]
[405793744,1771314646256,-185.12,0.00014662,2]
[405793745,1771314646266,-241.70774661,0.00014717,2]
[405793746,1771314646275,-250.0,0.00015,2]
[405793747,1771314646284,-704.93,0.00015142,2]
[405793748,1771314646294,-185.96,0.0001516,2]
[405793749,1771314646303,-173.57638878,0.00015185,2]
[405793750,1771314646313,-160.0,0.00015185,2]
[405793751,1771314646322,-306.51422453,0.00015312,2]
[405793752,1771314646331,-484.11558281,0.00015325,2]
[405793753,1771314646341,-6453.0,0.00015332,2]
[405793754,1771314646351,-1600.0,0.00015476,2]
[405793755,1771314646360,-391.49,0.00015635,2]
[405793756,1771314646370,-1737.0,0.00015657,2]
[405793757,1771314646379,-484.11558281,0.00015708,2]
[405793758,1771314646390,-185.96,0.00015819,2]
[405793759,1771314646399,-704.93,0.00015899,2]
[405793760,1771314646410,-5000.0,0.0001596,2]
[405793761,1771314646420,-152.85835458,0.00016,2]
[405793762,1771314646430,-152.85835458,0.000161,2]
[405793763,1771314646441,-7910.59,0.00016116,2]
[405793764,1771314646453,-175.52034071,0.00016198,2]
[405793765,1771314646463,-448.8,0.00016438,2]
[405793766,1771314646474,-185.96,0.00016478,2]
[405793767,1771314646483,-704.93,0.00016656,2]
[405793768,1771314646492,-9035.0,0.00016865,2]
[405793769,1771314646502,-300.0,0.00017,2]
[405793770,1771314646519,-185.96,0.00017137,2]
[405793771,1771314646533,-1600.0,0.00017411,2]
[405793772,1771314646543,-704.93,0.00017413,2]
[405793773,1771314646553,-1126.70824871,0.0001764,2]
[405793774,1771314646563,-1144.64772248,0.0001764,2]
[405793775,1771314646574,-1055.89929958,0.0001764,2]
[405793776,1771314646585,-1099.24725066,0.0001764,2]
[405793777,1771314646596,-1017.63652269,0.0001764,2]
[405793778,1771314646606,-1143.80417002,0.0001764,2]
[405793779,1771314646618,-1103.36824026,0.0001764,2]
[405793780,1771314646629,-1124.11188938,0.0001764,2]
[405793781,1771314646639,-185.96,0.00017796,2]
[405793782,1771314646650,-444.64,0.00017808,2]
[405793783,1771314646660,-800.0,0.00017808,2]
[405793784,1771314646671,-250.0,0.00017808,20]
[405793785,1771314646681,-250.0,0.00017808,20]
[405793786,1771314646691,-250.0,0.00017808,20]
[405793787,1771314646701,-250.0,0.00017808,20]
[405793788,1771314646711,-250.0,0.00017808,20]
[405793789,1771314646721,-250.0,0.00017808,20]
[405793790,1771314646731,-250.0,0.00017808,20]
[405793791,1771314646742,-250.0,0.00017808,20]
[405793792,1771314646753,-250.0,0.00017808,20]
[405793793,1771314646763,-250.0,0.00017808,20]
[405793794,1771314646773,-250.0,0.00017808,20]